Cogmind - Beta 16 --- EXPLORER MODE // 2026.01.08 @ 11:29:53 Player: K.K.Y. Result: Destroyed by P5-U87(R) with Subdweller Machine Gun Performance ------------- Evolutions (0) 0 Regions Visited (3) 600 Robots Destroyed (52) 260 Value Destroyed (1308) 1308 Prototype IDs (13) 260 Alien Tech Used (0) 0 Bonus (-37) -37 TOTAL SCORE: 2391 Bonus ------- Friendly Fire -37 Cogmind --------- Core Integrity 0/250 Matter 270/300 Energy 250/250 System Corruption 0% Temperature Cool (0) Movement Treading (250) Ox1 Location -10/Subcaves Parts ------- > --- POWER (1) -------- Ion Engine > --- PROPULSION (2) --- Improved Treads Spiked Treads > --- UTILITY (3) ------ High-capacity Storage Unit > --- WEAPON (2) ------- Battle Cannon > --- INVENTORY (20) --- Huge Storage Unit Humpback Structural Scanner Machine Analyzer Sensor Array Improved Terrain Scanner Makeshift Terrain Scanner Light Armor Plating Cobbler Unit Autobeam Battle Cannon EMP Blaster Mini Grenade Launcher Multitool Enhanced Flamer Makeshift Axe Makeshift Sword Makeshift Sword Peak State ------------ > --- POWER ------------ Light Nuclear Core > --- PROPULSION ------- Improved Treads Improved Treads > --- UTILITY ---------- Improved Heat Sink Improved Heat Sink Large Storage Unit > --- WEAPON ----------- Improved Medium Laser Improved Medium Laser > --- INVENTORY -------- Improved Treads Improved Treads Medium Storage Unit High-capacity Storage Unit Huge Storage Unit Sensor Array Improved Terrain Scanner Improved Medium Laser Heavy Assault Rifle Heavy Assault Rifle Heavy Assault Rifle Heavy Assault Rifle EMP Blaster Mini Grenade Launcher Mining Laser [Rating: 22] Favorites ----------- Power Ion Engine Engine Ion Engine Power Core Light Nuclear Core Propulsion Improved Treads Treads Improved Treads Utility Improved Heat Sink Device Improved Heat Sink Storage High-capacity Storage Unit Weapon Improved Medium Laser Energy Gun Improved Medium Laser Ballistic Gun Heavy Assault Rifle Ballistic Cannon Battle Cannon Launcher EMP Blaster Special Weapon Mining Laser Slashing Weapon Makeshift Sword Build | -11 -10 -10 -10 ------- Run | Yrd Mat Min Sub Slots Evolved 1 | . 1 . . Power . | . . . . Propulsion . | . . . . Utility 1 | . 1 . . Weapon . | . . . . Parts Attached 34 | 6 15 1 12 Power 4 | 1 1 . 2 Engine 3 | 1 . . 2 Core 1 | . 1 . . Reactor . | . . . . Propulsion 8 | 2 3 . 3 Treads 8 | 2 3 . 3 Leg . | . . . . Wheel . | . . . . Hover . | . . . . Flight . | . . . . Utility 6 | 1 4 . 1 Device 2 | . 2 . . Storage 4 | 1 2 . 1 Processor . | . . . . Hackware . | . . . . Protection . | . . . . Artifact . | . . . . Weapon 16 | 2 7 1 6 Energy Gun 7 | 2 3 1 1 Energy Cannon . | . . . . Ballistic Gun 4 | . 2 . 2 Ballistic Cannon 2 | . . . 2 Launcher 1 | . 1 . . Special Weapon 1 | . 1 . . Impact Weapon . | . . . . Slashing Weapon 1 | . . . 1 Piercing Weapon . | . . . . Special Melee Weapon . | . . . . Unidentified Prototypes 1 | . 1 . . Parts Lost 9 | . . . 9 Power 2 | . . . 2 Propulsion 2 | . . . 2 Utility 2 | . . . 2 Weapon 3 | . . . 3 Highest Loss Streak 3 | . . . 3 To Critical Strikes . | . . . . Average Backups 15 | 2 10 15 17 Power . | . . . . Propulsion . | . 1 2 . Utility 7 | 2 4 6 8 Weapon 6 | . 4 6 7 Tool/Special . | . . . . Unused Backups 17 | . 3 . 14 Power . | . . . . Propulsion 1 | . 1 . . Utility 9 | . 1 . 8 Weapon 6 | . 1 . 5 Tool/Special 1 | . . . 1 Average Slot Usage (%) 86 | . 74 100 86 Engine 6 | . 8 . 7 Core 3 | . 3 12 . Treads 23 | . 24 25 22 Device 18 | . 4 25 20 Storage 12 | . 12 12 12 Energy Gun 11 | . 14 25 7 Ballistic Gun 2 | . 3 . 3 Ballistic Cannon 6 | . . . 10 Peak Build Rating 22 | 6 22 22 22 Average Rating 17 | 4 11 22 18 On Entrance 12 | . 6 22 22 Avg Prop Armor Cover (%) . | . . . . Naked Turns . | . . . . Heaviest Build 53 | 19 33 33 53 Greatest Support 46 | 40 46 46 46 Greatest Overweight (x) 3 | 3 . . 2 Average Overweight (x) . | . . . . Largest Inventory Capacity 25 | 10 25 15 20 Average Capacity 17 | 9 13 15 19 Most Carried 20 | 6 15 15 20 Average Carried 16 | 2 10 14 18 Final Capacity 20 | 10 15 15 20 Final Carried 20 | 4 15 15 20 Class Distribution -------------------- 100% | Hacker-Mutant Dominant Class ---------------- Hacker-Mutant | -10/Materials Hacker-Mutant | -10/Mines Hacker-Mutant | -10/Subcaves Resources | -11 -10 -10 -10 ----------- Run | Yrd Mat Min Sub Matter Collected 1176 | 260 218 10 688 Remotely . | . . . . Salvage Created 1932 | 157 793 177 805 Parts 122 | 10 41 13 58 Haulers Intercepted 2 | . 2 . . Recyclers Shooed 1 | . 1 . . Parts Field Recycled . | . . . . Retrieved Matter . | . . . . Parts Self-Destructed . | . . . . Prevented . | . . . . Parts Restored . | . . . . Kills | -11 -10 -10 -10 ------- Run | Yrd Mat Min Sub Combat Hostiles Destroyed 33 | . 6 6 21 Guns 26 | . 5 6 15 Cannons 6 | . . . 6 Classes Destroyed 13 | 2 6 2 3 Worker 2 | . 2 . . Builder 4 | . 4 . . Tunneler 3 | 3 . . . Hauler 2 | . 2 . . Recycler 4 | 1 3 . . Mechanic 1 | . 1 . . Turret 2 | . . . 2 Watcher 1 | . 1 . . Swarmer 7 | . . 4 3 Grunt 6 | . 6 . . Sentry 3 | . . 2 1 Artisan 2 | . . . 2 Subdweller 17 | . . . 17 Best Kill Streak 5 | 4 5 2 3 Combat Bots Only 3 | . 2 2 3 Max Kills in Single Turn 2 | 1 1 2 2 Gunslinging 1 | . . 1 1 Exploded . | . . . . Melee . | . . . . Uniques/NPCs Destroyed . | . . . . Combat | -11 -10 -10 -10 -------- Run | Yrd Mat Min Sub Hostile Shots Fired 236 | . 14 20 202 Missed 93 | . 6 7 80 Hits 143 | . 8 13 122 Projectile 143 | . 8 13 122 AOE 1 | . . . 1 Critical Strikes 2 | . . . 2 Damage Taken 1612 | . 68 91 1453 Core 259 | . 7 14 238 Absorbed by Shields . | . . . . Ignored by Resistances 971 | . 42 57 872 Core Remaining (%) 100 | 100 . . . Volleys Fired 191 | 8 44 13 126 Largest 2 | 2 2 2 2 Hottest 156 | 80 156 112 156 Shots Fired 342 | 16 66 26 234 Gun 236 | 16 65 26 129 Cannon 96 | . . . 96 Launcher . | . . . . Special 10 | . 1 . 9 Kinetic 143 | . 16 . 127 Thermal 181 | . 48 26 107 Explosive . | . . . . Electromagnetic 18 | 16 2 . . Robot Hit Streak 31 | 10 15 12 31 Robot Miss Streak 2 | 1 2 1 1 Penetration Max . | . . . . Secondary Targets 3 | . . 1 2 Max Gunslinging Chain 1 | . . 1 1 Shots Hit Robots 213 | 13 48 20 132 Core Hits 83 | 5 26 8 44 Critical Kills . | . . . . Critical Parts Destroyed . | . . . . Critical Strikes 14 | . 8 2 4 Burn 14 | . 8 2 4 Melee Attacks 1 | . . . 1 Impact . | . . . . Slashing 1 | . . . 1 Piercing . | . . . . Sneak Attacks . | . . . . Combat Hostiles . | . . . . Follow-up Attacks . | . . . . Damage Inflicted 3379 | 203 714 339 2123 Guns 2648 | 179 692 339 1438 Cannons 637 | . . . 637 Explosions 46 | 24 22 . . Melee . | . . . . Ramming . | . . . . Kinetic 1117 | . 190 . 927 Thermal 2073 | 24 514 339 1196 Explosive . | . . . . Electromagnetic 189 | 179 10 . . Impact . | . . . . Slashing . | . . . . Piercing . | . . . . Highest Corruption . | . . . . Average Corruption . | . . . . Corruption Purged . | . . . . Corruption Blocked . | . . . . Overload Shots . | . . . . Overflow Damage . | . . . . Projectiles . | . . . . Explosions . | . . . . Melee . | . . . . Knockbacks 9 | . . . 9 Impact . | . . . . Kinetic 9 | . . . 9 Secondary . | . . . . Self-Inflicted Damage . | . . . . Shots . | . . . . Rammed . | . . . . Targets Rammed . | . . . . Kicked . | . . . . Crushed . | . . . . Highest Temperature 93 | 36 93 . 1 Average Temperature 20 | 18 21 . 1 Received Heat Transfer 720 | . 63 27 630 Siege Activations . | . . . . Martial Activations . | . . . . Shielding Activations . | . . . . Robots Disrupted . | . . . . Combat Hostiles . | . . . . Robots Corrupted . | . . . . Combat Hostiles . | . . . . Parts Fried 1 | 1 . . . Impact Corruptions . | . . . . Robots Melted 1 | . 1 . . Combat Hostiles 1 | . 1 . . Parts Melted 6 | . 4 . 2 Heat Transferred 5750 | 50 1900 888 2912 Parts Sabotaged . | . . . . Parts Stolen . | . . . . Parts Stripped . | . . . . Power Chain Reactions 2 | 1 1 . . Alert | -11 -10 -10 -10 ------- Run | Yrd Mat Min Sub Maximum Alert Level . | . . . . Low Security (%) 100 | 100 100 100 . Level 1 . | . . . . Level 2 . | . . . . Level 3 . | . . . . Level 4 . | . . . . Level 5 . | . . . . High Security . | . . . . Max Security . | . . . . Peak Influence 54 | 10 50 54 . Initial . | . . . . Average 4 | 1 5 3 . Influence Increases 541 | 20 227 144 150 Destroy 0b10 Robot/C 360 | . 120 120 120 Destroy 0b10 Robot/NC 85 | 20 65 . . Destroy Leader 56 | . 36 20 . Disable Machine 8 | . 4 4 . Destroy Structure 2 | . 2 . . Lose Combat Pursuer 30 | . . . 30 Influence Decreases 541 | 20 227 144 150 Time Decay 541 | 20 227 144 150 Squads Dispatched . | . . . . Investigation . | . . . . Extermination . | . . . . Reinforcement . | . . . . Assault . | . . . . Garrison . | . . . . Intercept . | . . . . Searches Triggered . | . . . . Construction Impeded . | . . . . Haulers Reinforced . | . . . . Active Scanning Responses . | . . . . Cargo Convoy Interrupts . | . . . . Stealth | -11 -10 -10 -10 --------- Run | Yrd Mat Min Sub Distress Signals . | . . . . Communications Jammed . | . . . . Distress Signals . | . . . . Times Spotted 48 | . 15 6 27 Peak Tracking Total 6 | . 3 2 6 Tactical Retreats 1 | . . . 1 Traps | -11 -10 -10 -10 ------- Run | Yrd Mat Min Sub Traps Triggered 2 | . 1 . 1 Indirectly . | . . . . Trap Hack Attempts . | . . . . Triggered . | . . . . Disarmed . | . . . . Reprogrammed . | . . . . Reused . | . . . . Traps Extracted . | . . . . Installed . | . . . . Triggered . | . . . . Machines | -11 -10 -10 -10 ---------- Run | Yrd Mat Min Sub Machines Disabled 4 | . 1 1 2 Max in Single Turn 1 | . 1 1 1 Machines Repaired . | . . . . Machines Dismantled . | . . . . Machines Sabotaged . | . . . . Overloaded Fab Kills . | . . . . Hacking | -11 -10 -10 -10 --------- Run | Yrd Mat Min Sub Machines Accessed 11 | . 10 . 1 Terminals 8 | . 8 . . Fabricators . | . . . . Repair Stations . | . . . . Recycling Units 2 | . 2 . . Scanalyzers . | . . . . Garrison Access . | . . . . Total Hacks 16 | . 15 . 1 Successful 14 | . 13 . 1 Failed 2 | . 2 . . Catastrophic . | . . . . Database Lockouts . | . . . . Manual 13 | . 13 . . Terminals 10 | . 10 . . Fabricators . | . . . . Repair Stations . | . . . . Recycling Units 5 | . 5 . . Scanalyzers . | . . . . Garrison Access . | . . . . Terminal Hacks 2 | . 1 . 1 Locate Traps 1 | . 1 . . Proto ID Catalog 1 | . . . 1 Fabricator Hacks . | . . . . Repair Station Hacks . | . . . . Recycling Unit Hacks 2 | . 2 . . Retrieve Components 2 | . 2 . . Scanalyzer . | . . . . Garrison Access Hacks . | . . . . Unauthorized Hacks 10 | . 10 . . Terminals 8 | . 8 . . Botnet 8 | . 8 . . Fabricators . | . . . . Repair Stations . | . . . . Recycling Units 2 | . 2 . . Reject 2 | . 2 . . Scanalyzers . | . . . . Garrison Access . | . . . . Data Cores Recovered . | . . . . Used . | . . . . Hacking Detections 6 | . 6 . . Full Trace Events 1 | . 1 . . Feedback Events . | . . . . Feedback Blocked . | . . . . Robot Schematics Acquired . | . . . . Robots Built . | . . . . Authchips . | . . . . Time . | . . . . Total Robot Build Rating . | . . . . Part Schematics Acquired . | . . . . Parts Built . | . . . . Authchips . | . . . . Time . | . . . . Total Part Build Rating . | . . . . Part Studies Acquired . | . . . . Parts Repaired . | . . . . Time . | . . . . Parts Recycled . | . . . . Recycled Matter . | . . . . Retrieved Matter . | . . . . Retrieved Components 2 | . 2 . . Parts Scanalyzed . | . . . . Part Schematics Acquired . | . . . . Parts Damaged . | . . . . Bothacking | -11 -10 -10 -10 ------------ Run | Yrd Mat Min Sub Used RIF Installer . | . . . . Robots Hacked . | . . . . Non-combat . | . . . . Combat . | . . . . Robot Hacks Applied . | . . . . Relay Couplers Released . | . . . . Fabnet Peak Effective % . | . . . . Robots Rewired . | . . . . Allies Hacked . | . . . . Hacks Repelled . | . . . . Allies | -11 -10 -10 -10 -------- Run | Yrd Mat Min Sub Total Allies . | . . . . Largest Group . | . . . . Highest-Rated Group . | . . . . Highest-Rated Ally . | . . . . Total Orders . | . . . . Ally Attacks . | . . . . Total Damage . | . . . . Kills . | . . . . Allies Corrupted . | . . . . Allies Melted . | . . . . Intel | -11 -10 -10 -10 ------- Run | Yrd Mat Min Sub Active Infowar (turns) . | . . . . Robot Analysis Total . | . . . . Derelict Logs Recovered 1 | . . . 1 Drone Launches . | . . . . Drone Recoveries . | . . . . Exploration | -11 -10 -10 -10 ------------- Run | Yrd Mat Min Sub Turns Passed 7464 | 94 1274 1234 4862 Spaces Moved 3324 | 41 695 741 1847 Core 15 | 15 . . . Treads 3309 | 26 695 741 1847 Legs . | . . . . Wheels . | . . . . Hover . | . . . . Flight . | . . . . Fastest Speed 50 | 50 160 160 160 Average Speed 201 | 123 160 160 235 Slowest Speed 320 | 200 160 160 320 Overloaded Moves . | . . . . Propulsion Burnouts . | . . . . Robots Hopped . | . . . . Potential Cave-ins . | . . . . Cave-ins Triggered . | . . . . Exploration Rate (%) 72 | 3 97 100 90 Regions Visited 3 Branch Regions 2 Pre-discovered Areas . | . . . . Known Exits Taken 3 | 1 1 1 . Unknown Exits Taken . | . . . . Scrap Searched 10 | . . . 10 Spaces Dug 1 | . . . 1 Terrain Destroyed 8 | 6 . . 2 Melee . | . . . . Projectile 2 | . . . 2 AOE 6 | 6 . . . Terrain Rammed . | . . . . Walls Destroyed . | . . . . Machines Disabled . | . . . . Actions | -11 -10 -10 -10 --------- Run | Yrd Mat Min Sub Total 3744 | 68 795 765 2116 Wait 112 | 6 3 6 97 Move 3321 | 40 694 740 1847 Hop . | . . . . Pick Up 45 | 8 19 2 16 Fast Attach 10 | 2 6 . 2 Attach 14 | 4 4 . 6 Detach 5 | . 5 . . Swap 17 | . 7 1 9 Drop 28 | . 13 3 12 Fire 191 | 8 44 13 126 Melee 1 | . . . 1 Ram . | . . . . Kick . | . . . . Crush . | . . . . Escape Stasis . | . . . . Rewire . | . . . . Trap . | . . . . Miscellaneous . | . . . . Route ------- -11/Scrapyard -10/Materials (discovered 4 exits: *Mat x3 / *Min) -10/Mines (discovered 3 exits: *Mat x2 / *Sub) -10/Subcaves (discovered 3 exits: *Mat x2 / *Rec) History --------- Turn | Location | Event 12 | -11/Scrapyard | Identified exit to Materials 12 | -11/Scrapyard | Discovered exit to Materials (range 16) 95 | -11/Scrapyard | Entered Materials 95 | -10/Materials | Evolved 1 slot: Utility x1 314 | -10/Materials | Build established: Hacker-Mutant 419 | -10/Materials | Identified exit to Materials 419 | -10/Materials | Discovered exit to Materials (range 8) 639 | -10/Materials | Discovered exit to Materials (range 7) 754 | -10/Materials | Identified exit to Mines 754 | -10/Materials | Discovered exit to Mines (range 9) 889 | -10/Materials | Discovered exit to Materials (range 11) 1369 | -10/Materials | Entered Mines 1400 | -10/Mines | A weapon hastily lodged in a ceiling crevice suddenly fell to the ground 1424 | -10/Mines | Discovered exit to Materials (range 5) 1750 | -10/Mines | Discovered exit to Materials (range 3) 1850 | -10/Mines | Found a hidden stash of uninstalled traps 2056 | -10/Mines | Identified exit to Subcaves 2056 | -10/Mines | Discovered exit to Subcaves (range 8) 2603 | -10/Mines | Entered Subcaves 2604 | -10/Subcaves | Approached by a straggling Scientist 2605 | -10/Subcaves | Identified exit to Recycling 2605 | -10/Subcaves | Discovered exit to Recycling (range 15) 2825 | -10/Subcaves | Ambushed by angry Subdweller bent on revenge 3131 | -10/Subcaves | Learned Materials garrison access intel 3242 | -10/Subcaves | Ambushed by Subdwellers from Twisted Machinery 4015 | -10/Subcaves | Core integrity fell below 50% 4087 | -10/Subcaves | Identified exit to Materials 4087 | -10/Subcaves | Discovered exit to Materials (range 2) 4199 | -10/Subcaves | Visited 4L-MR0's lab 4385 | -10/Subcaves | Lost 3 parts (1n2w) 4602 | -10/Subcaves | A swath of the cavern ceiling suddenly collapsed 4667 | -10/Subcaves | Discovered exit to Materials (range 6) 5638 | -10/Subcaves | Shifting Twisted Machinery released Spk. Treads 5642 | -10/Subcaves | Shifting Twisted Machinery released Sub. Machine Gun 5778 | -10/Subcaves | Disturbed a concealed Subdweller 5820 | -10/Subcaves | Shifting Twisted Machinery released Shrapnel Trap 5841 | -10/Subcaves | Shifting Twisted Machinery released Sub. Power Source 6072 | -10/Subcaves | A swath of the cavern ceiling suddenly collapsed 6507 | -10/Subcaves | Core integrity fell below 20% 6576 | -10/Subcaves | Lost 3 parts (2u1w) 6591 | -10/Subcaves | Shifting Twisted Machinery released Sub. Beam Cannon 6675 | -10/Subcaves | Shifting Twisted Machinery released Sub. Laser 7453 | -10/Subcaves | A Subdweller sparked back to life 7453 | -10/Subcaves | A Subdweller sparked back to life 7453 | -10/Subcaves | A Subdweller sparked back to life 7465 | -10/Subcaves | Destroyed by P5-U87(R) with Subdweller Machine Gun Last Messages --------------- 06754_ Acquired 30 matter. 07031_ Acquired 6 matter. 07041_ Acquired 1 matter. 07043_ Acquired 37 matter. 07048_ Acquired 52 matter. 07051_ Acquired 56 matter. 07053_ Acquired 2 matter. 07353_ Acquired 43 matter. 07358_ Acquired 25 matter. 07453_ K8-6JZ(R) creaks and sparks as it begins to move. 07453_ P5-U87(R) creaks and sparks as it begins to move. 07453_ A7-5LL(R) creaks and sparks as it begins to move. 07455_ K8-6JZ(R) destroyed. 07457_ A7-5LL(R) knocked back. 07460_ A7-5LL(R) affixes Scrap Shield Fragment to Scrap Shield. 07463_ A7-5LL(R) knocked back. Map ----- +----------------------------------------------------+ | ##??#### ####???????????????????? | | ##???# #???????????????????? | | ### #????# ##### #???????????????????? | | #?## ##????# #"%"##[#???????????????????? | | ##??# #?????# #"" "[&#???????????????????? | | #???# #?????# #%[" # #???????????????????? | | #### #???#####???# ###""#|#???????????????????? | | ##??######## ##??# ####!#???????????????????? | | ###??????# #??### #???????????????????? | | ?????????## #??# #####???????????????????? | | ??????????## ##??# ##????????????????????? | | ####???????# ##??## #????????????????????? | | ##??????# ##??# #????????????????????? | | ######## #?## #####????????????????????? | | ## ## #### ## ##?????????????????????? | | ## ##?# #?????????????????????? | | ### ##??# # ##?????????????????????? | | ## ### #??## # #?????????????????????? | | #### #####?## #########??????????????? | | ### ###?????# # #### ## #??????????????? | | #??????## ### #??????????????? | | ##??????# ##### ##?????????????? | | ##???????# #### < ## ## #?????????????? | | #????????## # & <### #?????????????? | | ##????????# < & # ###???????????? | | ##???????# & @R< # #????????#### | | ###?????### ##R% < ########??## | | ##??????####% <## # ## ####"! | | #?????????#!&%## [%! # | | # ##???????## % ## < ##* # | | ### ###????## ### # # # ##" # | | ??##" ##??## ##?## ###### ## | | ???#" #### ##???## ###### #### | | ???## ###???# ## ##?# | | ????## #???#### # #?## # | | ?????# ### #?????# #??### | | ?????###?## ####?##### #????? | | ??????????## ### ##???# # ##????? | | ???????????## ##?### #????# ## ##????? | | ????????????####????###????# # ###??? | | ????????????????????????# ###### ""##?? | | ??????????????????????# ####????# #"#?? | | ?????????????????????? ????????## ###?? | | ?????????????????????? ?????????#####???? | | ???????????????????????## ?????????????????? | | ????????????????????????## ??????????????????? | | ?????????????????????????### ??????????????????? | | ???????????????????????????####??????????????????? | | ?????????????????????????????????????????????????? | | ?????????????????????????????????????????????????? | +----------------------------------------------------+ Best States ------------- Heat Dissipation 53 Energy Generation 14 Energy Capacity 250 Matter Stores 300 Matter Capacity 300 Sight Range 16 Terrain Scan Density 10 Resistance: KI 35 Resistance: TH 35 Resistance: EX 35 Resistance: EM 35 Resistance: I 35 Resistance: S 35 Resistance: P 35 Evasion (%) 50 Recoil Reduction 2 Offensive Hacking 20 Item Schematics ----------------- None Robot Schematics ------------------ None Fabricated ------------ Nothing Repaired ---------- Nothing Studied --------- None Alien Tech Used ----------------- None Achievements -------------- None Challenges ------------ None Game ------ Seed DeuteriumAntisysGriptreads Manual? 0 Play Time 00:26:07 Cumulative 265.4 hours Start 2026.01.08 @ 11:04:03 End 2026.01.08 @ 11:29:53 Sessions 1 Manual Loads 0 Difficulty Explorer Special Mode None Game No. 414 Rogue 0 Adventurer 0 Explorer 414 Win Type - Total 0 Types 0/0/0/0/0/0/0/0/0/0 Lore% 72 Gallery% 69 Achievement% 54 Wizard Run 0 Options --------- Layout 1 ASCII 0 Keyboard 0 Movement Mouse Keybinds 0 Fullscreen 1 Font 24/Smallcaps Map View 50x35 Zoom Use 0% Tactical HUD 1 Map Filters NONE Filters NONE Steam 1 RUN: 263bf047-a291-4f60-abd0-6c959de10815